bitfinex-derivatives/quotes_ETHF0:USTF0_20250531
["timestamp","ask_amount","ask_price","bid_price","bid_amount"]
[1748696616540,0.00589518,2545.2,2545.1,5.93924]
[1748696617247,0.00589518,2545.2,2545.1,9.05863337]
[1748696617840,0.79130518,2545.2,2545.1,6.32719337]
[1748696618040,0.79130518,2545.2,2545.1,7.46688041]
[1748696618546,0.79130518,2545.2,2545.1,6.65845289]
[1748696618951,0.00589518,2545.2,2545.1,7.44389289]
[1748696619142,0.79130518,2545.2,2545.1,6.65845289]
[1748696619550,0.79130518,2545.2,2545.1,4.34748704]
[1748696619851,0.79130518,2545.2,2545.1,1.13968704]
[1748696620538,0.79130518,2545.2,2545.1,2.29596705]
[1748696622055,0.79130518,2545.2,2545.1,2.68139372]
[1748696622951,5.24930518,2545.2,2545.1,2.68139372]
[1748696623747,0.79130518,2545.2,2545.1,2.68139372]
[1748696623949,5.24930518,2545.2,2545.1,1.13968704]
[1748696625448,5.24930518,2545.2,2545.1,3.45065289]
[1748696626152,5.24930518,2545.2,2545.1,2.68528213]
[1748696626359,0.78544,2545.1,2545.0,2.31096585]
[1748696626551,2.09054,2545.1,2545.0,2.31096585]
[1748696626855,7.09054,2545.1,2545.0,2.31096585]
[1748696627051,0.78554,2544.8,2544.7,3.21369518]
[1748696627246,5.24354,2544.8,2544.7,3.21369518]
[1748696627656,0.7856,2544.6,2544.5,3.11939337]
[1748696628147,1.3051,2544.7,2544.4,3.2078]
[1748696628349,4.458,2544.7,2544.5,0.78561]
[1748696628555,4.458,2544.7,2544.6,0.7856]
[1748696628749,5.24359,2544.7,2544.5,2.11871]
[1748696628956,5.24359,2544.7,2544.6,0.7856]
[1748696628957,4.458,2544.7,2544.6,0.7856]
[1748696629149,4.458,2544.8,2544.5,1.3331]
[1748696629458,0.78552,2544.9,2544.8,0.78553]
[1748696629849,0.78552,2544.9,2544.8,1.2731]
[1748696630450,0.78552,2544.9,2544.8,2.05864]
[1748696630653,4.458,2545.0,2544.7,3.2078]
[1748696630855,0.78554,2544.8,2544.7,3.2078]
[1748696631055,4.458,2545.0,2544.6,3.11939337]
[1748696631056,0.78557,2544.7,2544.6,3.11939337]
[1748696631658,0.78555,2544.8,2544.6,3.11939337]
[1748696631857,0.78555,2544.8,2544.7,1.2298]
[1748696632060,5.24354,2544.8,2544.7,1.2298]
[1748696632254,0.78552,2544.9,2544.7,4.4376]
[1748696632454,0.78552,2544.9,2544.7,5.22315]
[1748696632649,0.78552,2544.9,2544.8,1.2298]
[1748696632856,0.78554,2544.8,2544.7,3.2078]
[1748696633164,1.3109,2544.9,2544.7,3.99336]
[1748696633458,4.458,2544.8,2544.7,3.99335]
[1748696633656,5.24354,2544.8,2544.7,3.2078]
[1748696633853,4.458,2544.8,2544.7,3.99337]
[1748696634061,5.24354,2544.8,2544.7,3.99337]
[1748696634859,1.953,2545.1,2544.7,3.99337]
[1748696635162,0.78546,2545.1,2545.0,3.2078]
[1748696635359,5.24346,2545.1,2545.0,3.2078]
[1748696637758,6.52646,2545.1,2545.0,3.2078]
[1748696639159,0.78554,2544.8,2544.7,3.11939337]
[1748696639969,8.99334,2544.8,2544.7,3.11939337]
[1748696640156,8.99334,2544.8,2544.4,3.9032244]
[1748696640363,0.78572,2544.2,2544.1,5.45647023]
[1748696640562,0.78575,2544.1,2543.9,3.87089661]
[1748696640767,2.08065,2544.1,2543.9,3.87089661]
[1748696640969,2.75445,2544.1,2543.9,3.87089661]
[1748696641173,4.458,2544.2,2544.0,3.2226]
[1748696641368,0.78575,2544.1,2544.0,4.4985]
[1748696641672,4.458,2544.2,2544.1,0.78575]
[1748696641973,0.78575,2544.1,2544.0,4.4985]
[1748696642269,0.78575,2544.1,2544.0,3.2226]
[1748696642863,3.8816,2544.6,2544.0,3.2226]
[1748696643064,0.6738,2544.6,2544.3,3.2078]
[1748696643371,0.7856,2544.6,2544.5,1.16034048]
[1748696643769,2.0684,2544.6,2544.5,1.16034048]
[1748696644266,2.0684,2544.6,2543.7,3.2078]
[1748696644267,0.78575,2544.1,2543.7,3.2078]
[1748696644468,5.24375,2544.1,2543.7,3.2078]
[1748696645361,24.14075,2544.1,2543.7,3.2078]
[1748696645867,29.14075,2544.1,2543.7,3.2078]
[1748696646167,0.78581,2543.9,2543.7,3.2078]
[1748696647077,1.43511,2543.9,2543.7,3.2078]
[1748696647268,1.43511,2543.9,2543.2,4.524]
[1748696647569,0.786,2543.3,2543.2,4.524]
[1748696647774,5.245,2543.3,2543.2,3.2078]
[1748696647969,24.144,2543.3,2543.2,3.2078]
[1748696648170,24.144,2543.3,2543.2,2.32052248]
[1748696648574,0.78606,2543.1,2543.0,0.00589518]
[1748696648769,24.07206,2543.1,2543.0,0.00589518]
[1748696648974,24.07206,2543.1,2543.0,1.71609518]
[1748696649275,5.17106,2543.1,2543.0,1.71609518]
[1748696649467,5.17106,2543.1,2543.0,1.32209518]
[1748696649667,0.78606,2543.1,2543.0,1.32209518]
[1748696650065,0.00589518,2543.5,2543.0,1.32209518]
[1748696650272,0.00589518,2543.5,2543.2,3.2078]
[1748696650466,4.39089518,2543.5,2543.3,1.2693]
[1748696650670,5.17684518,2543.5,2543.3,2.05529]
[1748696650969,0.00589518,2543.5,2543.3,1.2693]
[1748696651176,4.39089518,2543.5,2543.3,1.2693]
[1748696651367,4.39089518,2543.5,2543.3,2.05528]
[1748696651565,0.00589518,2543.5,2543.4,0.78597]
[1748696651872,0.78567,2544.4,2543.7,1.96467]
[1748696652070,4.385,2544.5,2544.2,3.2078]
[1748696652263,0.78569,2544.3,2544.2,3.2078]
[1748696653173,5.17069,2544.3,2544.2,3.2078]
[1748696653375,0.79154518,2544.5,2544.3,0.78568]
[1748696653568,4.385,2544.4,2544.3,1.3545]
[1748696654070,4.39089518,2544.5,2544.3,1.3545]
[1748696654281,0.78569,2544.3,2544.2,3.2078]
[1748696654476,0.78578,2544.1,2543.9,4.5623]
[1748696654771,4.385,2544.0,2543.7,3.08600207]
[1748696654970,3.99365,2543.8,2543.7,3.08600207]
[1748696655181,0.78591,2543.6,2543.5,3.08600207]
[1748696656473,2.0107,2543.7,2543.2,3.2078]
[1748696656675,0.786,2543.3,2543.2,3.2078]
[1748696656873,5.171,2543.3,2543.2,4.4786]
[1748696657070,0.6578,2543.7,2543.2,4.4786]
[1748696657272,23.336,2543.6,2543.3,1.2708]
[1748696657582,0.78592,2543.6,2543.3,2.05678]
[1748696657870,0.00589518,2544.5,2543.5,3.2078]
[1748696658073,0.78576,2544.1,2543.9,0.7858]
[1748696658279,0.78576,2544.1,2544.0,1.9429]
[1748696658468,0.78588,2543.7,2543.6,0.6181]
[1748696659083,0.78588,2543.7,2543.2,3.2078]
[1748696659084,0.78599,2543.4,2543.2,3.2078]
[1748696659379,5.171,2543.3,2543.2,3.2078]
[1748696659570,4.385,2543.3,2543.2,4.523]
[1748696659771,3.2078,2543.8,2543.2,4.523]
[1748696660075,5.17089,2543.7,2543.5,3.2078]
[1748696660277,1.3483,2544.1,2543.6,1.3152]
[1748696660472,18.975,2543.9,2543.6,1.3152]
[1748696660680,0.78588,2543.7,2543.6,1.3152]
[1748696661282,4.386,2543.7,2543.6,1.3152]
[1748696661470,5.17188,2543.7,2543.6,1.3152]
[1748696661674,0.78588,2543.7,2543.6,1.3152]
[1748696661876,1.3483,2544.1,2543.6,2.10111]
[1748696662174,1.96407,2544.6,2543.8,3.2078]
[1748696662373,4.386,2544.2,2543.9,2.085]
[1748696662577,0.78577,2544.1,2543.9,2.085]
[1748696662881,5.17174,2544.2,2544.0,0.78578]
[1748696663078,1.24339518,2544.5,2544.4,0.78566]
[1748696663280,1.24339518,2544.5,2544.1,4.4811]
[1748696663281,0.00589518,2544.5,2544.1,4.4811]
[1748696663476,0.78568,2544.4,2544.2,2.08491]
[1748696663681,0.78568,2544.4,2544.3,1.2992]
[1748696664181,0.00589518,2544.5,2544.3,1.2992]
[1748696664382,0.78566,2544.4,2544.3,1.2992]
[1748696664577,0.00589518,2544.5,2544.3,1.2992]
[1748696664777,0.00589518,2544.5,2544.4,3.99346]
[1748696664986,0.79152518,2544.5,2544.4,3.2078]
[1748696665185,0.79152518,2544.5,2544.4,4.507]
[1748696665587,0.00589518,2544.5,2544.4,4.507]
[1748696665787,0.79152518,2544.5,2544.4,4.507]
[1748696666587,0.79152518,2544.5,2544.4,3.2078]
[1748696666785,7.09702518,2544.5,2544.4,3.2078]
[1748696666977,0.78566,2544.4,2544.3,1.54225574]
[1748696667181,0.78578,2544.0,2543.9,3.08600207]
[1748696667384,24.12078,2544.0,2543.9,3.08600207]
[1748696667689,0.78591,2543.6,2543.5,3.08600207]
[1748696667884,8.37871,2543.6,2543.5,3.08600207]
[1748696668282,5.17091,2543.6,2543.5,3.08600207]
[1748696668787,4.385,2543.6,2543.2,0.78603]
[1748696668995,1.2816,2543.5,2543.1,1.3604]
[1748696669183,0.78603,2543.2,2543.1,1.3604]
[1748696669489,4.385,2543.2,2543.1,2.14646]
[1748696669688,3.2078,2544.0,2543.1,1.3604]
[1748696669990,4.385,2543.9,2543.6,3.2078]
[1748696670188,0.78585,2543.8,2543.7,1.362]
[1748696670393,1.2816,2544.2,2543.7,1.362]
[1748696670600,1.2816,2544.2,2543.7,1.9799]
[1748696670601,0.78585,2543.8,2543.7,1.9799]
[1748696670899,0.78591,2543.6,2543.5,2.31930014]
[1748696671102,5.17091,2543.6,2543.5,2.31930014]
[1748696671604,0.78597,2543.4,2543.3,5.52710014]
[1748696672303,0.78597,2543.4,2543.3,3.2078]
[1748696672706,0.78603,2543.2,2543.1,2.31930014]
[1748696672898,5.17203,2543.2,2543.1,2.31930014]
[1748696673197,0.78606,2543.1,2543.0,5.53299532]
[1748696673497,2.10766,2543.1,2543.0,5.53299532]
[1748696673695,2.10766,2543.1,2543.0,3.21369518]
[1748696674397,2.74526,2543.1,2543.0,3.21369518]
[1748696674595,2.74526,2543.1,2543.0,0.00589518]
[1748696675001,0.78612,2542.9,2542.8,2.31930014]
[1748696675197,0.78615,2542.8,2542.7,3.2078]
[1748696675508,6.50315,2542.8,2542.7,3.2078]
[1748696677490,0.78622,2542.6,2542.5,0.00589518]
[1748696679611,0.79928124,2542.6,2542.5,0.00589518]
[1748696679908,5.79928124,2542.6,2542.5,5.18e-06]
[1748696680606,7.13418124,2542.6,2542.5,5.18e-06]
[1748696680810,2.13418124,2542.6,2542.5,5.18e-06]
[1748696681011,6.51518124,2542.6,2542.5,5.18e-06]
[1748696684112,2.13418124,2542.6,2542.5,5.18e-06]
[1748696684413,25.38818124,2542.6,2542.5,5.18e-06]
[1748696685008,0.79928124,2542.6,2542.5,5.18e-06]
[1748696685312,5.18028124,2542.6,2542.5,3.20780518]
[1748696685499,0.79928124,2542.6,2542.5,3.20780518]
[1748696685704,5.18028124,2542.6,2542.5,3.20780518]
[1748696686318,4.39406124,2542.6,2542.5,3.20780518]
[1748696686606,0.01306124,2542.6,2542.5,8.99405518]
[1748696686814,0.01306124,2542.6,2542.5,10.29335518]
[1748696687012,0.01306124,2542.6,2542.5,4.50710518]
[1748696687321,0.79928124,2542.6,2542.5,5.18e-06]
[1748696689404,5.79928124,2542.6,2542.5,5.18e-06]
[1748696689802,7.16118124,2542.6,2542.5,5.18e-06]
[1748696691312,0.78649,2541.7,2541.6,3.2078]
[1748696691513,24.02349,2541.7,2541.6,3.2078]
[1748696693011,0.78656,2541.5,2541.4,0.00589518]
[1748696693210,0.78656,2541.5,2541.4,1.34169518]
[1748696693710,0.00589518,2541.7,2541.4,7.75958518]
[1748696693918,0.00589518,2541.7,2541.6,3.2078]
[1748696694114,0.79238518,2541.7,2541.6,3.2078]
[1748696694817,0.78656,2541.5,2541.4,1.97299518]
[1748696696714,1.97867124,2542.6,2541.4,6.97299518]
[1748696696922,0.78632,2542.3,2542.1,3.99417]
[1748696697122,0.78632,2542.3,2542.2,2.6399]
[1748696697918,0.98282,2542.3,2542.2,2.6399]
[1748696698113,0.1965,2542.3,2542.2,2.6399]
[1748696698318,0.98281,2542.3,2542.2,2.6399]
[1748696699417,5.36581,2542.3,2542.2,2.6399]
[1748696700319,4.5795,2542.3,2542.2,2.6399]
[1748696700524,0.1965,2542.3,2542.2,3.42624]
[1748696700822,0.98281,2542.3,2542.2,2.6399]
[1748696701023,0.98281,2542.3,2542.2,3.42624]
[1748696701227,0.1965,2542.3,2542.2,3.42624]
[1748696701521,0.98281,2542.3,2542.2,4.97128088]
[1748696701710,0.1965,2542.3,2542.2,4.97128088]
[1748696702115,0.1965,2542.3,2542.2,5.74554014]
[1748696702627,0.1965,2542.3,2542.2,10.74554014]
[1748696702818,0.00589518,2542.5,2542.4,0.78628]
[1748696703020,0.01306124,2542.6,2542.5,0.78625]
[1748696703213,4.382,2542.9,2542.5,1.3262]
[1748696703426,5.16812,2542.9,2542.8,3.2078]
[1748696703618,4.382,2542.9,2542.8,3.99395]
[1748696703827,4.382,2543.6,2542.9,1.96532]
[1748696704025,5.16792,2543.6,2543.5,3.2078]
[1748696704621,5.16792,2543.6,2543.5,4.534]
[1748696704924,5.16792,2543.6,2543.5,5.2105]
[1748696705722,0.78594,2543.5,2543.4,1.54783421]
[1748696705924,0.78597,2543.4,2543.3,2.32175131]
[1748696706320,2.11777,2543.4,2543.3,2.32175131]
[1748696706633,4.38789518,2543.8,2543.4,0.78597]
[1748696706927,5.17375518,2543.8,2543.5,2.05342]
[1748696707126,4.38789518,2543.8,2543.5,2.05342]
[1748696707329,0.00589518,2543.8,2543.5,1.9245]
[1748696707714,4.38789518,2543.8,2543.5,3.08463551]
[1748696707922,0.78591,2543.6,2543.5,1.16013551]
[1748696708529,2.01451,2543.6,2543.5,1.16013551]
[1748696709231,0.786,2543.3,2543.2,2.44503551]
[1748696711127,0.786,2543.3,2543.2,1.16013551]
[1748696711323,2.0991,2543.3,2543.2,1.16013551]
[1748696711925,3.21369518,2543.8,2543.2,1.16013551]
[1748696711926,0.00589518,2543.8,2543.3,0.786]
[1748696712135,0.00589518,2543.8,2543.7,3.2078]
[1748696712136,0.79174518,2543.8,2543.7,3.2078]
[1748696713031,5.17974518,2543.8,2543.7,3.2078]
[1748696713936,5.17974518,2543.8,2543.7,0.22436551]
[1748696714131,0.78594,2543.5,2543.4,1.57757682]
[1748696714337,3.99374,2543.5,2543.4,0.68221682]
[1748696715040,8.99374,2543.5,2543.4,6.82e-06]
[1748696715235,10.17273,2543.5,2543.0,0.00589518]
[1748696715435,0.78606,2543.1,2543.0,0.00589518]
[1748696716934,0.78606,2543.1,2543.0,5.18e-06]
[1748696716935,3.99386,2543.1,2543.0,5.18e-06]
[1748696717136,9.62536,2543.1,2543.0,5.18e-06]
[1748696722343,4.62536,2543.1,2543.0,5.18e-06]
[1748696722539,9.62536,2543.1,2543.0,5.18e-06]
[1748696723240,9.62536,2543.1,2541.7,3.2078]
[1748696723241,0.78646,2541.8,2541.7,3.2078]
[1748696723444,5.17546,2541.8,2541.7,3.2078]
[1748696724245,0.78653,2541.6,2541.5,1.98149518]
[1748696725439,0.00589518,2542.0,2541.8,0.78645]
[1748696725642,4.389,2543.1,2541.9,4.5421]
[1748696725843,4.389,2543.1,2542.7,3.2078]
[1748696726136,0.78612,2542.9,2542.8,1.3343]
[1748696726950,0.78615,2542.8,2542.7,3.2078]
[1748696727142,0.78625,2542.5,2542.4,3.2078]
[1748696727348,0.78628,2542.4,2542.3,1.9234]
[1748696727642,0.78634,2542.2,2542.0,3.2078]
[1748696727841,0.78634,2542.2,2542.1,1.3092]
[1748696728241,0.78632,2542.3,2542.1,1.3092]
[1748696728444,0.78634,2542.2,2542.1,1.3092]
[1748696728745,0.78633,2542.3,2542.1,1.3092]
[1748696729056,0.78631,2542.3,2542.2,0.6141]
[1748696729241,5.17531,2542.3,2542.2,0.6141]
[1748696733147,0.78646,2541.8,2541.7,3.822]
[1748696733450,5.17546,2541.8,2541.7,5.1325]
[1748696734444,5.17546,2541.8,2541.7,3.822]
[1748696735646,5.17546,2541.8,2541.7,3.2078]
[1748696741151,24.15646,2541.8,2541.7,3.2078]
[1748696741744,6.48872,2542.2,2541.7,8.2078]
[1748696741745,4.415,2541.9,2541.7,8.2078]
[1748696741954,5.20143,2541.9,2541.8,1.3137]
[1748696742153,4.415,2541.9,2541.8,1.3137]
[1748696742357,4.415,2541.9,2541.8,2.10016]
[1748696742652,4.415,2541.9,2541.8,7.10016]
[1748696743054,5.20143,2541.9,2541.8,7.10016]
[1748696743257,0.78641,2542.0,2541.8,7.10016]
[1748696743452,0.78641,2542.0,2541.9,0.6315]
[1748696743755,0.78641,2542.0,2541.9,1.9452]
[1748696744255,0.78641,2542.0,2541.7,5.52873055]
[1748696744256,0.78646,2541.8,2541.7,5.52873055]
[1748696744450,0.78646,2541.8,2541.7,3.2078]
[1748696744757,0.78646,2541.8,2541.7,4.75833916]
[1748696745852,0.78646,2541.8,2541.7,3.2078]
[1748696746348,4.415,2542.0,2541.7,8.2078]
[1748696746655,1.9657,2542.4,2541.8,1.3498]
[1748696746855,0.78639,2542.1,2541.9,0.78643]
[1748696747056,0.78639,2542.1,2541.8,1.3498]
[1748696747057,0.78639,2542.1,2542.0,1.3498]
[1748696747453,0.78639,2542.1,2542.0,4.5576]
[1748696748156,0.78639,2542.1,2542.0,6.88340874]
[1748696749456,0.78639,2542.1,2542.0,6.10909515]
[1748696750355,3.2078,2542.9,2542.0,6.10909515]
[1748696750553,0.78629,2542.4,2542.3,3.2078]
[1748696751152,0.6139,2543.0,2542.5,0.78622]
[1748696751351,5.20115,2542.8,2542.7,3.2078]
[1748696751555,5.20115,2542.8,2542.7,3.8804]
[1748696751952,20.91107518,2543.1,2542.7,8.8804]
[1748696751953,0.00589518,2543.1,2542.7,8.8804]
[1748696752259,0.79195518,2543.1,2543.0,3.2078]
[1748696752571,0.79195518,2543.1,2543.0,5.1516]
[1748696752756,0.79195518,2543.1,2543.0,10.1516]
[1748696752958,0.79195518,2543.1,2543.0,5.1516]
[1748696754660,0.78612,2542.9,2542.8,3.1015636]
[1748696755354,0.78612,2542.9,2542.8,1.55254682]
[1748696755552,2.08172,2542.9,2542.8,1.55254682]
[1748696755955,2.08172,2542.9,2542.8,0.00589518]
[1748696759864,7.08172,2542.9,2542.8,5.18e-06]
[1748696761268,2.08172,2542.9,2542.8,5.18e-06]
[1748696761463,6.49572,2542.9,2542.8,5.18e-06]
[1748696761861,0.78612,2542.9,2542.8,5.18e-06]
[1748696762061,0.00589518,2543.1,2542.8,5.00000518]
[1748696762262,0.00589518,2543.1,2543.0,3.2078]
[1748696762465,0.79195518,2543.1,2543.0,3.2078]
[1748696762665,0.00589518,2543.1,2543.0,10.24459]
[1748696762868,3.11790049,2543.7,2543.0,10.24459]
[1748696763075,5.19982,2543.9,2543.6,3.99369]
[1748696763366,0.78584,2543.8,2543.7,1.9336]
[1748696763763,4.414,2544.1,2543.7,1.9336]
[1748696763764,0.00589518,2544.0,2543.7,6.9336]
[1748696763954,0.78581,2543.9,2543.8,1.2938]
[1748696764160,0.79169518,2544.0,2543.8,4.5016]
[1748696764466,0.78581,2543.9,2543.8,4.5016]
[1748696765868,0.00589518,2544.0,2543.8,4.5016]
[1748696766068,0.00589518,2544.0,2543.9,0.6729]
[1748696766264,0.00589518,2544.0,2543.9,1.9462]
[1748696766466,1.96376,2545.0,2543.9,6.9462]
[1748696766672,5.1985,2544.9,2544.8,3.2078]
[1748696767469,4.413,2545.3,2544.8,8.2078]
[1748696767664,0.00589518,2545.1,2545.0,0.78547]
[1748696767973,1.96307,2545.9,2545.0,3.2078]
[1748696768178,0.78529,2545.6,2545.5,3.2078]
[1748696768371,0.78538,2545.3,2545.2,2.38973]
[1748696768577,0.78547,2545.0,2544.9,3.2078]
[1748696769071,0.78556,2544.7,2544.6,5.43324682]
[1748696769274,0.78556,2544.7,2544.6,3.21369518]
[1748696770580,0.78556,2544.7,2544.6,5.18e-06]
[1748696770769,2.12456,2544.7,2544.6,5.18e-06]
[1748696772678,21.03156,2544.7,2544.6,5.18e-06]
[1748696773575,29.23036,2544.7,2544.6,5.18e-06]
[1748696775978,29.21336,2544.7,2544.6,5.18e-06]
[1748696776381,5.33236,2544.7,2544.6,5.18e-06]
[1748696776678,28.60136,2544.7,2544.6,5.18e-06]
[1748696776877,9.72636,2544.7,2544.6,5.18e-06]
[1748696777080,28.59636,2544.7,2544.6,5.18e-06]
[1748696777579,9.72636,2544.7,2544.6,5.18e-06]
[1748696777980,28.58736,2544.7,2544.6,5.18e-06]
[1748696778281,25.37956,2544.7,2544.6,5.18e-06]
[1748696778674,25.37356,2544.7,2544.6,5.18e-06]
[1748696780471,0.78556,2544.7,2544.6,3.20780518]
[1748696780677,0.78556,2544.8,2544.6,8.20780518]
[1748696780879,0.78556,2544.8,2544.7,0.6451]
[1748696781081,4.393,2544.9,2544.7,0.6451]
[1748696781277,4.393,2545.0,2544.7,0.6451]
[1748696781476,0.79131,2545.2,2544.9,3.2078]
[1748696781682,0.00589,2545.2,2545.1,0.78544]
[1748696781879,0.44323414,2545.8,2545.0,1.96363]
[1748696782182,1.22846414,2545.8,2545.7,3.2078]
[1748696783278,1.22846414,2545.8,2545.7,8.2078]
[1748696783773,1.22846414,2545.8,2545.7,3.2078]
[1748696785390,3.2078,2548.8,2547.4,0.78473]
[1748696785681,1.2356,2548.7,2547.7,0.78464]
[1748696785877,1.2356,2548.7,2547.7,3.2078]
[1748696786079,3.88530204,2548.3,2547.8,0.78459]
[1748696786277,3.10083204,2548.3,2547.9,0.78458]
[1748696786482,0.78461,2547.8,2547.7,3.21369518]
[1748696786879,4.391,2547.8,2547.7,3.21369518]
[1748696787082,5.17561,2547.8,2547.7,3.21369518]
[1748696787287,0.7846,2547.9,2547.7,3.21369518]
[1748696787582,5.17561,2547.8,2547.7,3.21369518]
[1748696787782,5.17561,2547.8,2547.7,0.00589518]
[1748696788182,5.17561,2547.8,2547.7,3.21369518]
[1748696788782,5.17561,2547.8,2547.7,0.00589518]
[1748696788984,7.02581,2547.8,2547.7,0.00589518]
[1748696789279,3.2028,2547.8,2547.2,3.2078]
[1748696789487,0.78476,2547.3,2547.2,3.2078]
[1748696789786,4.39,2547.5,2547.2,3.2078]
[1748696789981,0.78476,2547.3,2547.2,3.2078]
[1748696790189,0.78483,2547.1,2547.0,0.00589518]
[1748696790877,4.39,2547.3,2547.0,0.00589518]
[1748696791088,0.78481,2547.2,2547.0,1.24459518]
[1748696791284,4.39,2547.3,2547.0,2.02943518]
[1748696791479,4.39,2547.4,2547.2,3.2078]
[1748696791684,4.39,2547.4,2547.3,1.2387]
[1748696791985,0.78477,2547.3,2547.2,3.2078]
[1748696792580,2.12657,2547.3,2547.2,3.2078]
[1748696793081,0.78483,2547.1,2547.0,0.00589518]
[1748696793284,3.99263,2547.1,2547.0,0.00589518]
[1748696793487,8.99263,2547.1,2547.0,5.18e-06]
[1748696793692,5.17383,2547.1,2547.0,5.18e-06]
[1748696794083,11.53123,2547.1,2547.0,5.18e-06]
[1748696795787,0.7852,2545.9,2545.8,3.2078]
[1748696795986,5.1742,2545.9,2545.8,3.2078]
[1748696796789,0.78518,2546.0,2545.8,3.2078]
[1748696796991,0.78518,2546.0,2545.9,1.2982]
[1748696797187,0.7852,2545.9,2545.8,3.2078]
[1748696797383,4.389,2546.0,2545.8,3.2078]
[1748696797588,0.7852,2545.9,2545.8,3.2078]
[1748696801796,4.523,2546.0,2545.8,3.2078]
[1748696801986,0.00589518,2546.1,2545.9,1.3467]
[1748696802186,0.00589518,2546.1,2546.0,0.78517]
[1748696802386,0.00589518,2546.1,2546.0,1.39947]
[1748696802586,0.00589518,2546.1,2546.0,6.39947]
[1748696802884,0.79103518,2546.1,2546.0,5.6143]
[1748696803082,0.79103518,2546.1,2546.0,6.9649]
[1748696803291,0.7852,2545.9,2545.8,3.2078]
[1748696803495,0.7852,2545.9,2545.8,4.5584]
[1748696804797,4.523,2546.0,2545.8,4.5584]
[1748696804995,0.7852,2545.9,2545.8,4.5584]
[1748696805298,0.00589518,2546.1,2545.8,4.5584]
[1748696805589,0.79103518,2546.1,2546.0,0.78517]
[1748696806092,0.79103518,2546.1,2545.9,0.78519]
[1748696806093,0.78518,2546.0,2545.9,0.78519]
[1748696806286,0.78518,2546.0,2545.9,2.1027]
[1748696806486,0.78518,2546.0,2545.9,1.3175]
[1748696806487,0.78517,2546.0,2545.9,1.3175]
[1748696806987,0.78517,2546.0,2545.9,2.10267]
[1748696807392,0.78517,2546.0,2545.9,1.3175]
[1748696807593,0.7852,2545.9,2545.8,4.35846458]
[1748696807996,0.7852,2545.9,2545.8,4.5253]
[1748696808791,0.7852,2545.9,2545.8,3.2078]
[1748696809192,0.7852,2545.9,2545.8,4.5628]
[1748696809802,6.63518,2546.0,2545.8,5.34801]
[1748696810002,6.63518,2546.0,2545.9,0.7852]
[1748696810302,0.7852,2545.9,2545.8,4.35846458]
[1748696810893,6.63519,2546.0,2545.9,0.7852]
[1748696811090,4.523,2546.0,2545.9,0.7852]
[1748696811403,0.7852,2545.9,2545.8,5.14367458]
[1748696811603,4.523,2546.0,2545.9,0.7852]
[1748696811798,4.523,2546.0,2545.9,2.0396]
[1748696812003,4.524,2546.0,2545.9,1.2544]
[1748696812306,4.524,2546.0,2545.9,2.03959]
[1748696812599,4.524,2546.0,2545.9,3.19025458]
[1748696813198,5.30917,2546.0,2545.9,2.40506458]
[1748696813395,5.30917,2546.0,2545.9,1.15066458]
[1748696813597,6.55477,2546.0,2545.9,1.15066458]
[1748696813798,4.524,2546.0,2545.9,1.93586458]
[1748696814009,5.30917,2546.0,2545.9,3.19026458]
[1748696814498,5.30917,2546.0,2545.9,1.15066458]
[1748696815206,4.524,2546.0,2545.9,1.93586458]
[1748696815502,4.524,2546.0,2545.9,3.23936458]
[1748696816597,5.30917,2546.0,2545.9,2.45416458]
[1748696817608,0.7852,2545.9,2545.8,3.2078]
[1748696819102,0.7852,2545.9,2545.8,5.52777746]
[1748696819305,0.7852,2545.9,2545.8,6.76687746]
[1748696819607,0.7852,2545.9,2545.8,7.55210746]
[1748696820000,5.30919,2546.0,2545.9,0.7852]
[1748696820301,4.524,2546.0,2545.9,2.0243]
[1748696820494,5.30917,2546.0,2545.9,1.2391]
[1748696821006,4.524,2546.0,2545.9,2.0243]
[1748696821197,4.524,2546.0,2545.9,4.34427746]
[1748696821396,5.30917,2546.0,2545.9,3.55907746]
[1748696821803,5.30917,2546.0,2545.9,2.31997746]
[1748696822203,0.79103518,2546.1,2546.0,0.78517]
[1748696822503,0.79103518,2546.1,2545.8,6.30346842]
[1748696822504,0.78517,2546.0,2545.9,1.3352]
[1748696823108,0.7852,2545.9,2545.8,6.30346842]
[1748696823795,0.7852,2545.9,2545.8,7.08869842]
[1748696823991,0.78517,2546.0,2545.9,0.78519]
[1748696824195,0.78517,2546.0,2545.9,2.05839]
[1748696824604,0.79105518,2546.1,2545.9,2.05839]
[1748696824996,0.00589518,2546.1,2545.9,1.2732]
[1748696825206,0.78517,2546.0,2545.9,5.15404842]
[1748696825405,0.00589518,2546.1,2546.0,0.78517]
[1748696825605,0.00589518,2546.1,2546.0,2.05837]
[1748696826291,0.78517,2546.0,2545.9,3.88084842]
[1748696826496,0.78517,2546.0,2545.8,3.2078]
[1748696826497,0.79104518,2546.1,2546.0,0.78517]
[1748696826696,0.79103518,2546.1,2546.0,0.78517]
[1748696827110,0.78517,2546.0,2545.9,2.11328]
[1748696827304,0.7852,2545.9,2545.8,3.2078]
[1748696827502,0.7852,2545.9,2545.8,3.993]
[1748696827809,0.78519,2546.0,2545.9,0.78519]
[1748696828106,0.7852,2545.9,2545.8,3.2078]
[1748696828700,2.07579,2546.0,2545.9,0.7852]
[1748696828903,18.94389518,2546.1,2545.9,0.7852]
[1748696829208,0.00762892,2546.0,2545.9,0.7852]
[1748696829406,0.00762892,2546.0,2545.9,2.1133]
[1748696829704,0.79279892,2546.0,2545.9,2.1133]
[1748696829907,0.00762892,2546.0,2545.9,2.1133]
[1748696830104,0.00762892,2546.0,2545.9,5.21157279]
[1748696830704,0.00762892,2546.0,2545.9,2.1133]
[1748696831109,0.79279892,2546.0,2545.9,2.1133]
[1748696832307,0.00762892,2546.0,2545.9,2.1133]
[1748696832710,0.79279892,2546.0,2545.9,2.1133]
[1748696833011,0.79279892,2546.0,2545.9,0.7852]
[1748696833012,0.00762892,2546.0,2545.9,0.7852]